bitfinex-derivatives/quotes_ETHF0:USTF0_20250504
["timestamp","ask_amount","ask_price","bid_price","bid_amount"]
[1746331401187,1.09156,1832.0,1831.9,1.6931]
[1746331401586,1.09156,1832.0,1831.9,2.78469]
[1746331401793,2.526,1832.1,1832.0,1.09153]
[1746331401984,3.2078,1832.2,1832.1,1.09147]
[1746331402184,3.64379876,1832.3,1832.2,1.09142]
[1746331402592,5.46628266,1832.4,1832.3,1.09136]
[1746331402793,6.64119307,1832.5,1832.4,1.0913]
[1746331402989,6.64119307,1832.5,1832.4,1.9014]
[1746331403192,6.64119307,1832.5,1832.4,12.2552]
[1746331403388,6.64119307,1832.5,1832.4,7.2552]
[1746331405690,2.79183,1832.7,1832.5,1.0912]
[1746331405992,2.79183,1832.7,1832.6,5.0638]
[1746331406797,2.79183,1832.7,1832.6,3.483]
[1746331407290,4.48043,1832.7,1832.6,3.483]
[1746331408091,1.09136,1832.3,1832.2,9.395]
[1746331408295,1.09136,1832.3,1832.2,3.483]
[1746331408697,1.09136,1832.3,1832.2,5.1973]
[1746331411798,1.09134,1832.4,1832.2,6.2887]
[1746331412096,1.09126,1832.5,1832.3,1.09132]
[1746331412297,1.71,1832.6,1832.5,1.09124]
[1746331412499,1.71,1832.6,1832.5,2.79034]
[1746331412698,1.71,1832.6,1832.5,6.27334]
[1746331413395,2.80118,1832.6,1832.5,5.1821]
[1746331414194,2.80118,1832.6,1832.5,3.483]
[1746331414499,1.09136,1832.3,1832.2,5.9836]
[1746331414700,1.5702,1832.5,1832.2,7.07497]
[1746331414888,1.09131,1832.4,1832.3,1.6499]
[1746331415197,2.66147,1832.5,1832.3,2.74126]
[1746331415500,1.5702,1832.5,1832.4,1.0913]
[1746331415696,1.5702,1832.5,1832.4,2.7412]
[1746331416099,2.66144,1832.5,1832.4,2.7412]
[1746331416500,1.5702,1832.5,1832.4,2.7412]
[1746331417392,1.09123,1832.6,1832.4,2.7412]
[1746331417587,1.6166,1832.6,1832.5,2.68764]
[1746331419801,1.6166,1832.6,1832.5,6.18464]
[1746331424094,1.09117,1832.7,1832.6,1.09118]
[1746331424295,1.09117,1832.7,1832.6,3.59048]
[1746331424698,2.70847,1832.7,1832.6,3.59048]
[1746331425191,2.70847,1832.7,1832.6,2.4993]
[1746331425604,2.70847,1832.7,1832.6,3.59048]
[1746331426604,2.70847,1832.7,1832.6,1.88218]
[1746331427005,2.70847,1832.7,1832.6,0.791]
[1746331427710,1.09118,1832.6,1832.5,3.497]
[1746331427901,2.68828,1832.6,1832.5,3.497]
[1746331434313,6.37628,1832.6,1832.5,3.497]
[1746331442018,6.37628,1832.6,1832.5,5.0944]
[1746331442219,2.68828,1832.6,1832.5,5.0944]
[1746331442422,1.0913,1832.4,1832.3,3.2078]
[1746331442715,1.0913,1832.4,1832.3,6.7038]
[1746331443018,1.0913,1832.4,1832.3,3.496]
[1746331443210,1.09147,1832.1,1832.0,3.2584]
[1746331443417,1.09147,1832.1,1832.0,6.7544]
[1746331444017,1.09146,1832.2,1832.0,7.84592]
[1746331444220,1.90866,1832.2,1832.0,7.84592]
[1746331444814,1.7264,1832.1,1832.0,7.84592]
[1746331445319,2.81787,1832.1,1832.0,6.7544]
[1746331445515,1.09159,1831.9,1831.8,10.74627157]
[1746331445719,1.09159,1831.9,1831.8,11.59667157]
[1746331445916,2.81797,1832.0,1831.8,10.25945]
[1746331446113,2.81797,1832.0,1831.9,2.70319]
[1746331446516,1.09151,1832.1,1831.9,2.70319]
[1746331446726,3.63506,1832.2,1832.0,3.52431]
[1746331446917,2.81786,1832.2,1832.1,2.462]
[1746331447117,2.81786,1832.2,1832.1,5.96]
[1746331447317,1.09146,1832.2,1832.1,7.05147]
[1746331447524,3.2078,1832.3,1832.1,7.05147]
[1746331447716,1.09133,1832.4,1832.2,2.79782]
[1746331448014,1.09133,1832.4,1832.3,2.5635]
[1746331448215,6.82318,1832.5,1832.3,3.65486]
[1746331448412,5.98538,1832.5,1832.4,0.8504]
[1746331448610,5.98538,1832.5,1832.4,6.0548]
[1746331452029,1.6863,1832.5,1832.4,7.1461]
[1746331452221,2.77754,1832.5,1832.4,6.0548]
[1746331452423,0.8366,1832.7,1832.4,6.0548]
[1746331452424,1.09115,1832.7,1832.5,1.09124]
[1746331452618,3.2078,1832.8,1832.6,2.4077]
[1746331452822,3.2078,1832.8,1832.7,7.00772]
[1746331453022,4.29886,1832.8,1832.7,5.9166]
[1746331453726,4.29886,1832.8,1832.7,3.498]
[1746331453927,7.53766,1832.8,1832.7,3.498]
[1746331454126,11.22566,1832.8,1832.7,3.498]
[1746331455627,8.01786,1832.8,1832.7,3.498]
[1746331456023,8.01786,1832.8,1832.7,5.0808]
[1746331457629,7.16106,1832.8,1832.7,5.0808]
[1746331458632,6.36996,1832.8,1832.7,5.0808]
[1746331460027,6.36996,1832.8,1832.7,3.498]
[1746331460724,6.36996,1832.8,1832.7,5.1999]
[1746331462231,3.688,1832.8,1832.7,6.29102]
[1746331463225,2.83044,1832.9,1832.7,6.29102]
[1746331463426,2.83044,1832.9,1832.8,0.8114]
[1746331463626,2.83044,1832.9,1832.8,2.4972]
[1746331465634,2.83044,1832.9,1832.8,0.8114]
[1746331465839,1.09106,1832.8,1832.7,3.498]
[1746331466039,3.61996,1832.8,1832.7,3.498]
[1746331467039,1.09112,1832.7,1832.6,2.4561]
[1746331467231,3.62,1832.8,1832.6,7.04428]
[1746331467427,3.62,1832.8,1832.7,0.8284]
[1746331469439,3.62,1832.8,1832.7,1.91952]
[1746331469640,1.6843,1832.8,1832.7,1.91952]
[1746331469938,1.6843,1832.8,1832.7,3.63552]
[1746331471444,1.09104,1832.9,1832.8,1.09106]
[1746331471642,2.80094,1832.9,1832.8,2.67456]
[1746331471944,1.7099,1832.9,1832.8,2.67456]
[1746331472338,2.8009,1832.9,1832.8,2.67456]
[1746331472536,3.2078,1833.0,1832.9,1.091]
[1746331472739,3.2078,1833.0,1832.9,7.0011]
[1746331473041,4.29874,1833.0,1832.9,7.0011]
[1746331473239,4.29874,1833.0,1832.9,5.0805]
[1746331473443,6.00864,1833.0,1832.9,3.497]
[1746331474142,9.69664,1833.0,1832.9,3.497]
[1746331476441,1.09118,1832.6,1832.4,5.12865]
[1746331476743,0.851,1832.5,1832.4,5.12865]
[1746331477039,2.467,1832.5,1832.4,8.63265]
[1746331477244,2.467,1832.5,1832.4,10.22935]
[1746331478146,1.09109,1832.8,1832.6,1.09115]
[1746331478338,1.91219,1832.8,1832.6,1.09115]
[1746331479244,5.60019,1832.8,1832.6,1.09115]
[1746331479441,2.72416,1832.7,1832.5,2.80372]
[1746331479648,1.633,1832.6,1832.5,2.80372]
[1746331480547,2.72418,1832.6,1832.5,2.80372]
[1746331480741,2.72418,1832.6,1832.5,1.7125]
[1746331480942,2.72418,1832.6,1832.5,6.30774]
[1746331481545,2.72418,1832.6,1832.5,5.2165]
[1746331482149,2.72418,1832.6,1832.5,6.30774]
[1746331483248,2.72418,1832.6,1832.5,2.80374]
[1746331483545,2.72418,1832.6,1832.5,6.30774]
[1746331484251,2.72418,1832.6,1832.5,1.7125]
[1746331484441,2.72418,1832.6,1832.5,3.504]
[1746331485047,2.72418,1832.6,1832.5,4.59524]
[1746331485243,1.633,1832.6,1832.5,4.59524]
[1746331485551,2.72418,1832.6,1832.5,6.24734]
[1746331485947,1.633,1832.6,1832.5,6.24734]
[1746331488148,1.09116,1832.7,1832.6,1.09118]
[1746331488336,1.09116,1832.7,1832.6,3.60688]
[1746331489043,4.77916,1832.7,1832.6,3.60688]
[1746331489252,6.36386,1832.7,1832.6,3.60688]
[1746331491151,3.688,1832.7,1832.6,3.60688]
[1746331491353,3.688,1832.7,1832.6,6.81468]
[1746331492151,2.82854,1832.9,1832.8,1.09106]
[1746331492352,2.82854,1832.9,1832.8,4.59606]
[1746331492650,2.82854,1832.9,1832.8,3.505]
[1746331493153,2.82854,1832.9,1832.8,4.59606]
[1746331494353,2.82854,1832.9,1832.8,3.505]
[1746331496646,2.82854,1832.9,1832.8,4.59606]
[1746331497454,2.82854,1832.9,1832.8,3.505]
[1746331497648,3.61894,1832.9,1832.8,3.505]
[1746331501653,1.7375,1832.9,1832.8,4.59606]
[1746331501853,2.8285,1832.9,1832.8,7.05836]
[1746331502247,1.7375,1832.9,1832.8,7.05836]
[1746331503055,2.8285,1832.9,1832.8,7.05836]
[1746331503352,1.7375,1832.9,1832.8,7.05836]
[1746331505046,3.2078,1833.0,1832.9,1.091]
[1746331505251,4.29874,1833.0,1832.9,3.529]
[1746331505560,5.46302844,1833.1,1833.0,1.09094]
[1746331505751,5.46302844,1833.1,1833.0,5.90534]
[1746331506253,6.55390844,1833.1,1833.0,5.90534]
[1746331506757,8.15260844,1833.1,1833.0,4.8144]
[1746331507059,8.15260844,1833.1,1833.0,5.90534]
[1746331507259,2.68958,1833.1,1833.0,5.90534]
[1746331507757,2.68958,1833.1,1833.0,3.2078]
[1746331508556,2.68958,1833.1,1833.0,4.29874]
[1746331509161,2.68958,1833.1,1833.0,3.2078]
[1746331509453,1.09118,1832.6,1832.5,7.24827157]
[1746331509649,1.09118,1832.6,1832.5,10.73527157]
[1746331509849,1.09118,1832.6,1832.5,11.82651157]
[1746331510454,2.81378,1832.6,1832.5,11.82651157]
[1746331510757,1.7226,1832.6,1832.5,11.82651157]
[1746331510955,1.88479,1832.8,1832.6,1.09118]
[1746331511154,4.77909,1832.8,1832.7,1.09112]
[1746331511357,3.688,1832.8,1832.7,10.00779157]
[1746331511854,3.688,1832.8,1832.7,11.65599157]
[1746331512252,1.8846,1833.1,1832.9,1.09096]
[1746331512556,2.74655,1833.2,1833.0,5.39684]
[1746331512859,1.6557,1833.1,1833.0,5.39684]
[1746331513557,2.74658,1833.1,1833.0,5.39684]
[1746331513759,2.74658,1833.1,1833.0,4.3059]
[1746331514559,2.74658,1833.1,1833.0,5.39684]
[1746331515056,2.74658,1833.1,1833.0,4.3059]
[1746331515261,2.74658,1833.1,1833.0,3.487]
[1746331516157,3.688,1833.1,1833.0,4.57794]
[1746331516760,4.77888,1833.1,1833.0,3.487]
[1746331517062,4.77888,1833.1,1833.0,4.2843]
[1746331517263,1.09088,1833.1,1833.0,4.2843]
[1746331517653,2.68838,1833.1,1833.0,4.2843]
[1746331518361,2.68838,1833.1,1833.0,5.37524]
[1746331518557,0.7924,1833.3,1833.1,1.09086]
[1746331518558,1.09076,1833.3,1833.1,1.09086]
[1746331518758,11.09432844,1833.4,1833.1,3.55626]
[1746331518957,2.68831,1833.3,1833.1,3.55626]
[1746331519152,1.5975,1833.2,1833.1,3.55626]
[1746331519562,2.68832,1833.2,1833.1,2.4654]
[1746331520065,1.5975,1833.2,1833.1,3.55628]
[1746331520264,2.68832,1833.2,1833.1,2.4654]
[1746331520566,1.5975,1833.2,1833.1,3.55628]
[1746331520767,9.76156844,1833.4,1833.2,1.09078]
[1746331521059,5.46302844,1833.4,1833.3,5.39736]
[1746331521567,5.46302844,1833.4,1833.3,8.60516]
[1746331522364,7.27176477,1833.5,1833.3,7.5144]
[1746331522565,5.46302844,1833.6,1833.5,1.09064]
[1746331523159,3.20015102,1833.6,1833.5,10.99124]
[1746331523462,3.19164403,1833.9,1833.8,1.09046]
[1746331523662,10.83399198,1834.1,1834.0,1.09034]
[1746331523870,10.83399198,1834.1,1834.0,4.29814]
[1746331524269,10.83399198,1834.1,1834.0,9.67894]
[1746331524468,2.99982651,1834.1,1834.0,14.67894]
[1746331524664,10.01203731,1834.2,1834.1,1.09028]
[1746331524964,10.01203731,1834.2,1834.1,10.02008363]
[1746331525170,8.88641731,1834.2,1834.1,10.02008363]
[1746331525372,7.76086731,1834.2,1834.1,10.02008363]
[1746331526067,7.76086731,1834.2,1834.1,5.02008363]
[1746331526962,3.2078,1834.8,1834.6,1.08994]
[1746331527167,3.2078,1834.8,1834.7,4.57593]
[1746331527168,3.688,1834.8,1834.7,4.57593]
[1746331527363,5.3463,1834.8,1834.7,4.57593]
[1746331527565,10.3463,1834.8,1834.7,4.57593]
[1746331528271,6.6583,1834.8,1834.7,4.57593]
[1746331528664,1.6583,1834.8,1834.7,4.57593]
[1746331529669,3.688,1834.9,1834.8,1.08987]
[1746331530273,1.5703,1835.1,1835.0,1.08975]
[1746331530470,2.65999,1835.1,1835.0,3.485]
[1746331530672,1.5703,1835.1,1835.0,3.485]
[1746331530973,2.65999,1835.1,1835.0,3.485]
[1746331531175,6.34799,1835.1,1835.0,3.485]
[1746331531673,11.34799,1835.1,1835.0,3.485]
[1746331531876,11.34799,1835.1,1834.9,4.57479]
[1746331531877,11.34802,1835.1,1834.9,4.57479]
[1746331532069,5.2583,1835.1,1834.9,4.57479]
[1746331532374,5.2583,1835.1,1835.0,1.08975]
[1746331533069,5.2583,1835.1,1834.9,4.57478]
[1746331533269,5.2583,1835.1,1835.0,1.08975]
[1746331533876,6.34801,1835.1,1834.9,4.57479]
[1746331534075,1.08975,1835.0,1834.9,3.485]
[1746331534374,6.34495,1835.0,1834.9,3.485]
[1746331534573,3.688,1835.0,1834.9,4.57481]
[1746331535176,5.2552,1835.1,1835.0,1.08975]
[1746331535380,5.2552,1835.1,1834.9,3.485]
[1746331535676,6.34489,1835.1,1834.9,4.57476]
[1746331537279,2.65689,1835.1,1834.9,4.57476]
[1746331538281,6.34489,1835.1,1834.9,4.57476]
[1746331539481,5.2552,1835.1,1834.9,3.485]
[1746331539677,5.2552,1835.1,1835.0,1.08975]
[1746331540278,1.5672,1835.1,1835.0,1.08975]
[1746331541778,2.65692,1835.1,1834.9,4.57477]
[1746331542285,2.69185,1835.0,1834.9,4.57477]
[1746331542481,1.6021,1835.0,1834.9,4.57477]
[1746331544478,2.4572,1835.0,1834.9,4.57477]
[1746331545385,3.54695,1835.0,1834.9,4.57477]
[1746331547184,2.4572,1835.0,1834.9,4.57477]
[1746331548386,3.54695,1835.0,1834.9,4.57481]
[1746331548982,1.6021,1835.0,1834.9,4.57481]
[1746331549182,1.6021,1835.0,1834.9,6.28011]
[1746331552190,2.5175,1835.2,1835.1,1.08969]
[1746331568605,2.5175,1835.2,1835.1,2.72079]
[1746331569117,2.5175,1835.2,1835.1,1.08969]
[1746331569811,3.60715,1835.2,1835.0,3.2078]
[1746331570011,1.6921,1835.1,1835.0,4.29755]
[1746331571019,1.6921,1835.1,1835.0,11.54582157]
[1746331575022,1.6921,1835.1,1835.0,4.29755]
[1746331575222,1.6921,1835.1,1835.0,6.01475]
[1746331576723,0.8407,1835.2,1835.1,1.08969]
[1746331577026,2.4966,1835.2,1835.1,2.80689]
[1746331579520,3.58623,1835.2,1835.1,1.08969]
[1746331579719,3.58627,1835.2,1835.1,3.506]
[1746331580217,2.4966,1835.2,1835.1,4.59569]
[1746331580926,3.58623,1835.2,1835.1,4.59569]
[1746331581123,2.4966,1835.2,1835.1,4.59569]
[1746331582722,2.4966,1835.2,1835.1,6.33039]
[1746331583028,1.6559,1835.2,1835.1,6.33039]
[1746331589032,1.6559,1835.2,1835.1,4.59569]
[1746331590327,1.08969,1835.1,1835.0,11.54580157]
[1746331590530,0.7926,1835.1,1835.0,15.05180157]
[1746331591029,2.3931,1835.1,1835.0,15.05180157]
[1746331593937,3.48279,1835.1,1835.0,15.05180157]
[1746331594730,3.48279,1835.1,1835.0,7.80353]
[1746331597136,3.48279,1835.1,1835.0,6.7138]
[1746331597638,3.48279,1835.1,1835.0,7.80355]
[1746331598239,7.17079,1835.1,1835.0,7.80355]
[1746331598738,7.17079,1835.1,1835.0,4.59575]
[1746331598937,6.0811,1835.1,1835.0,4.59575]
[1746331599438,7.17079,1835.1,1835.0,4.59575]
[1746331601939,6.0811,1835.1,1835.0,4.59575]
[1746331602642,5.2885,1835.1,1835.0,6.97855]
[1746331603342,1.6005,1835.1,1835.0,6.97855]
[1746331603840,1.6005,1835.1,1835.0,7.66055]
[1746331604241,1.6005,1835.1,1835.0,14.90882157]
[1746331604438,1.6005,1835.1,1835.0,18.11662157]
[1746331607845,1.6005,1835.1,1835.0,30.84353681]
[1746331608538,1.6005,1835.1,1835.0,30.16153681]
[1746331610343,1.6005,1835.1,1835.0,19.27740031]
[1746331613346,1.6005,1835.1,1835.0,26.53006112]
[1746331615944,1.6005,1835.1,1835.0,24.14726112]
[1746331619342,1.6005,1835.1,1835.0,25.72646112]
[1746331626945,1.6005,1835.1,1835.0,29.35793681]
[1746331627553,1.6005,1835.1,1835.0,27.77873681]
[1746331629853,1.6005,1835.1,1835.0,7.80355]
[1746331633264,1.6005,1835.1,1835.0,15.05592919]
[1746331634961,2.69019,1835.1,1835.0,10.46017919]
[1746331635164,6.37819,1835.1,1835.0,13.94317919]
[1746331635366,6.37819,1835.1,1835.0,15.03292919]
[1746331636465,5.2885,1835.1,1835.0,15.03292919]
[1746331638667,6.37819,1835.1,1835.0,10.46017919]
[1746331638865,9.58599,1835.1,1835.0,10.73537919]
[1746331639365,9.58599,1835.1,1835.0,3.483]
[1746331641664,14.58599,1835.1,1835.0,3.483]
[1746331642471,1.08975,1835.0,1834.9,7.25237919]
[1746331642667,3.57875,1835.0,1834.9,7.25237919]
[1746331642971,1.08987,1834.8,1834.7,10.73637919]
[1746331643168,1.08987,1834.8,1834.7,11.82630919]
[1746331643569,2.74427,1834.8,1834.7,11.82630919]
[1746331644474,2.74427,1834.8,1834.7,7.25237919]
[1746331644772,2.74427,1834.8,1834.7,10.73637919]
[1746331645172,6.43227,1834.8,1834.7,10.73637919]
[1746331646077,6.43227,1834.8,1834.7,3.484]
[1746331650783,1.08993,1834.7,1834.6,59.066]
[1746331651080,3.59683,1834.7,1834.6,59.066]
[1746331651384,3.59683,1834.7,1834.6,3.484]
[1746331652189,7.28483,1834.7,1834.6,3.484]
[1746331652481,1.08999,1834.6,1834.5,7.25237919]
[1746331652682,3.57229,1834.6,1834.5,7.25237919]
[1746331653283,7.26029,1834.6,1834.5,7.25237919]
[1746331653486,1.09005,1834.5,1834.4,6.6918]
[1746331653679,2.72055,1834.5,1834.4,6.6918]
[1746331654485,6.40855,1834.5,1834.4,6.6918]
[1746331657090,6.40855,1834.5,1834.4,3.484]
[1746331658087,6.40855,1834.5,1834.1,5.6916]
[1746331658088,5.3185,1834.5,1834.1,5.6916]
[1746331658293,2.4807,1834.4,1834.2,3.484]
[1746331658490,1.6474,1834.3,1834.2,3.484]
[1746331658691,2.5063,1834.3,1834.2,3.484]
[1746331658889,3.59647,1834.3,1834.2,3.484]
[1746331659391,2.5063,1834.3,1833.9,7.93487919]
[1746331659694,0.8589,1834.3,1834.2,3.484]
[1746331659993,1.94907,1834.3,1834.2,3.484]
[1746331660196,5.63707,1834.3,1834.2,3.484]
[1746331661094,8.84487,1834.3,1834.2,3.484]
[1746331662199,7.98597,1834.3,1834.2,4.57423]
[1746331662495,7.98597,1834.3,1834.2,5.8196]
[1746331663098,4.29797,1834.3,1834.2,5.8196]
[1746331663997,1.09017,1834.3,1834.2,5.8196]
[1746331664199,4.29797,1834.3,1834.2,5.8196]
[1746331665092,1.09017,1834.3,1834.2,5.8196]
[1746331667989,1.09013,1834.4,1834.3,1.09015]
[1746331668192,1.09013,1834.4,1834.3,1.92695]
[1746331668694,1.09013,1834.4,1834.3,0.8368]
[1746331669694,4.0309,1834.6,1834.4,1.09005]
[1746331669894,4.29782,1834.6,1834.3,0.8368]
[1746331670099,0.803,1834.7,1834.3,4.0446]
[1746331670100,1.89297,1834.7,1834.3,4.0446]
[1746331670304,1.08997,1834.7,1834.5,1.09001]
[1746331670602,1.08997,1834.7,1834.6,1.5196]
[1746331671201,1.08997,1834.7,1834.6,2.60959]
[1746331671998,5.15141,1834.8,1834.7,1.08993]
[1746331672201,4.29771,1834.8,1834.6,2.60955]
[1746331673904,1.08993,1834.7,1834.6,2.60955]
[1746331674102,1.08993,1834.7,1834.6,1.5196]
[1746331674706,1.08993,1834.7,1834.6,2.60959]
[1746331675307,3.2078,1834.8,1834.6,2.60959]
[1746331676103,1.08993,1834.7,1834.6,2.60959]
[1746331676605,1.08993,1834.7,1834.6,1.5196]
[1746331676809,1.08993,1834.7,1834.6,0.8368]
[1746331678408,1.08993,1834.7,1834.6,1.92679]
[1746331679209,2.71763,1834.7,1834.6,3.56219]
[1746331684516,2.71763,1834.7,1834.6,0.8368]
[1746331686307,2.71763,1834.7,1834.6,1.08999]
[1746331686510,1.08999,1834.6,1834.5,6.14971]
[1746331686712,2.71339,1834.6,1834.5,6.14971]
[1746331688121,1.6234,1834.6,1834.5,6.14971]
[1746331691222,1.696,1834.8,1834.7,1.08993]
[1746331691423,1.94348,1835.0,1834.9,1.08981]
[1746331691620,1.696,1835.0,1834.9,4.57281]
[1746331695118,1.696,1835.0,1834.9,6.19531]
[1746331709027,1.6106,1835.2,1835.1,1.08969]
[1746331709229,3.3185,1835.2,1835.1,1.08969]
[1746331712632,4.2973,1835.5,1835.0,7.56128]
[1746331712835,0.8003,1835.4,1835.3,1.08952]
[1746331713031,2.3853,1835.4,1835.3,4.57152]
[1746331713830,1.585,1835.4,1835.3,4.57152]
[1746331714030,1.5905,1835.6,1835.5,1.08945]
[1746331715132,5.2785,1835.6,1835.5,1.08945]
[1746331715325,6.8649,1835.6,1835.5,1.08945]
[1746331716127,3.1769,1835.6,1835.5,1.08945]
[1746331732041,6.8649,1835.6,1835.5,1.08945]
[1746331733246,3.1769,1835.6,1835.5,1.08945]
[1746331735650,4.26629,1835.6,1835.4,1.08946]
[1746331735843,1.7229,1835.5,1835.4,1.08946]
[1746331739047,1.72811358,1835.5,1835.4,1.08946]
[1746331745246,1.72811358,1835.5,1835.4,2.78836]
[1746331745455,1.72811358,1835.5,1835.4,6.85596]
[1746331753756,0.00521358,1835.5,1835.4,14.10833919]
[1746331754248,0.00521358,1835.5,1835.4,17.79633919]
[1746331755162,0.00521358,1835.5,1835.4,23.70833919]
[1746331758264,0.00521358,1835.5,1835.4,36.42311038]
[1746331759664,1.669,1835.7,1835.6,1.08939]
[1746331759867,1.669,1835.7,1835.6,4.56739]
[1746331764766,1.669,1835.7,1835.6,20.90085854]
[1746331771891,1.669,1835.7,1835.6,24.10865854]
[1746331784498,1.669,1835.7,1835.6,25.71205854]
[1746331787297,1.669,1835.7,1835.6,25.71005854]
[1746331788302,1.669,1835.7,1835.6,29.33528587]
[1746331794700,1.669,1835.7,1835.6,26.12748587]
[1746331797305,1.669,1835.7,1835.6,29.33528587]
[1746331800509,1.6493,1835.8,1835.7,1.08933]
[1746331800810,1.6493,1835.8,1835.7,2.82323]
[1746331803812,1.6493,1835.8,1835.7,22.78192587]
[1746331806913,3.2421,1835.8,1835.7,22.78192587]
[1746331807610,3.2421,1835.8,1835.7,21.04802587]
[1746331810907,3.2421,1835.8,1835.7,24.25582587]
[1746331812305,3.2421,1835.8,1835.7,25.97932587]
[1746331816013,1.5928,1835.8,1835.7,25.97932587]
[1746331816315,1.5928,1835.8,1835.7,26.81032587]
[1746331820620,0.8345,1836.0,1835.9,1.08922]
[1746331820915,0.8345,1836.0,1835.9,4.56222]
[1746331821316,2.4321,1836.0,1835.9,4.56222]
[1746331827623,3.52126,1836.0,1835.9,3.473]
[1746331828323,3.52126,1836.0,1835.9,4.56222]
[1746331829522,3.52126,1836.0,1835.9,3.473]
[1746331831218,7.20926,1836.0,1835.9,3.473]
[1746331835933,7.20926,1836.0,1835.9,4.56222]
[1746331837234,7.20926,1836.0,1835.9,3.473]
[1746331838832,7.20926,1836.0,1835.9,4.56222]
[1746331843839,7.20926,1836.0,1835.9,11.816747]
[1746331845935,6.1201,1836.0,1835.9,11.816747]
[1746331848940,6.1201,1836.0,1835.9,13.449247]
[1746331849142,2.4321,1836.0,1835.9,13.449247]
[1746331849737,2.4321,1836.0,1835.9,26.14742362]
[1746331851342,2.4321,1836.0,1835.9,24.51492362]
[1746331866457,1.08886,1836.6,1836.1,2.72275]
[1746331866754,4.42966,1836.6,1836.4,4.29668]
[1746331866943,11.615,1836.6,1836.5,3.47]
[1746331867145,15.303,1836.6,1836.5,3.47]
[1746331869061,15.303,1836.6,1836.5,4.55886]
[1746331869355,15.303,1836.6,1836.5,3.47]
[1746331869556,14.21414,1836.6,1836.5,4.55886]
[1746331870054,15.30294,1836.6,1836.5,3.47]
[1746331870554,14.21414,1836.6,1836.5,4.55886]
[1746331871350,7.0288,1836.6,1836.5,4.55886]
[1746331872960,8.1176,1836.6,1836.5,4.55886]
[1746331873257,7.0288,1836.6,1836.5,4.55886]
[1746331873559,5.3383,1836.6,1836.5,4.55886]
[1746331874256,1.6503,1836.6,1836.5,4.55886]
[1746331877363,1.6503,1836.6,1836.5,6.27696]
[1746331879659,1.6588,1836.8,1836.7,1.08874]
[1746331880060,5.3468,1836.8,1836.7,1.08874]
[1746331880463,6.4355,1836.8,1836.6,5.99476]
[1746331880664,6.4355,1836.8,1836.6,4.29656]
[1746331880960,1.7145,1836.7,1836.6,4.29656]
[1746331881664,2.80324,1836.7,1836.6,3.2078]
[1746331882863,2.80324,1836.7,1836.6,4.2966]
[1746331883064,2.80324,1836.7,1836.6,3.2078]
[1746331883861,1.08886,1836.5,1836.4,3.2078]
[1746331884071,4.77686,1836.5,1836.4,3.466]
[1746331884564,6.43456,1836.5,1836.4,3.466]
[1746331884767,1.08892,1836.4,1836.3,8.34281234]
[1746331884966,2.77532,1836.4,1836.3,11.80883234]
[1746331885168,6.46332,1836.4,1836.3,4.55498]
[1746331887968,5.3744,1836.4,1836.3,4.55498]
[1746331888673,5.3744,1836.4,1836.3,6.89598]
[1746331889062,1.6864,1836.4,1836.3,6.89598]
[1746331889262,1.08877,1836.7,1836.6,1.0888]
[1746331889463,1.08877,1836.7,1836.6,4.5548]
[1746331889662,1.08877,1836.7,1836.6,3.466]
[1746331890069,1.5828,1836.8,1836.6,3.466]
[1746331890271,4.77674,1836.7,1836.6,3.466]
[1746331891165,1.08874,1836.7,1836.6,3.466]
[1746331891673,2.67154,1836.7,1836.6,3.466]
[1746331892071,6.35954,1836.7,1836.6,3.466]
[1746331896173,2.67154,1836.7,1836.6,3.466]
[1746331897470,1.0888,1836.6,1836.5,3.466]
[1746331897671,7.5708,1836.6,1836.5,3.466]
[1746331898165,1.08898,1836.3,1836.2,5.912]
[1746331898372,4.29678,1836.3,1836.2,5.912]
[1746331898570,1.08904,1836.2,1836.1,7.25385234]
[1746331898766,4.47874,1836.2,1836.1,7.25385234]
[1746331898966,9.47874,1836.2,1836.1,5.95056234]
[1746331899174,13.16674,1836.2,1836.1,5.95056234]
[1746331899372,1.0891,1836.1,1836.0,10.87568199]
[1746331899575,6.0314,1836.1,1836.0,10.87568199]
[1746331899773,11.0314,1836.1,1836.0,10.87568199]
[1746331899976,1.08922,1835.9,1835.8,3.466]
[1746331900370,4.29702,1835.9,1835.8,3.466]
[1746331901175,7.98502,1835.9,1835.8,3.466]
[1746331901476,4.77722,1835.9,1835.8,3.466]
[1746331901663,4.77722,1835.9,1835.8,4.55527]
[1746331901664,3.688,1835.9,1835.8,4.55527]
[1746331901868,3.688,1835.9,1835.8,6.20847]
[1746331902070,5.3648,1835.9,1835.8,6.20847]
[1746331902274,2.76602,1835.9,1835.8,5.1192]
[1746331902575,1.6768,1835.9,1835.8,6.20847]
[1746331903076,2.76602,1835.9,1835.8,6.20847]
[1746331903374,1.6768,1835.9,1835.8,6.20847]
[1746331903773,2.76602,1835.9,1835.8,6.20847]
[1746331904675,2.76602,1835.9,1835.8,5.1192]
[1746331905376,2.76602,1835.9,1835.8,3.466]
[1746331905877,2.76602,1835.9,1835.8,4.55527]
[1746331906076,1.6768,1835.9,1835.8,4.55527]
[1746331907979,2.76602,1835.9,1835.8,4.55527]
[1746331908182,1.6768,1835.9,1835.8,4.55527]
[1746331909380,1.6768,1835.9,1835.8,6.25157]
[1746331911881,4.29693,1836.1,1835.9,1.08922]
[1746331912083,2.66806,1836.0,1835.8,6.25153]